bitfinex-derivatives/quotes_BTCF0:USTF0_20250121
["timestamp","ask_amount","ask_price","bid_price","bid_amount"]
[1737475588871,0.002,104330.0,104320.0,0.67500048]
[1737475589079,0.002,104330.0,104320.0,0.54245477]
[1737475589280,0.001,104330.0,104320.0,0.54245477]
[1737475589482,0.001,104330.0,104320.0,0.54145477]
[1737475590179,0.004,104330.0,104320.0,0.67400048]
[1737475590483,0.003,104330.0,104320.0,0.54145477]
[1737475590682,0.14063838,104350.0,104340.0,0.04796]
[1737475590683,0.50143838,104350.0,104340.0,0.04796]
[1737475590877,0.50143838,104350.0,104340.0,0.18050571]
[1737475590878,3.8e-07,104350.0,104340.0,0.18050571]
[1737475591078,0.11416914,104370.0,104360.0,0.047951]
[1737475591378,0.10473442,104370.0,104360.0,1.68049671]
[1737475591579,0.10473442,104370.0,104360.0,1.547951]
[1737475591882,0.51348142,104370.0,104360.0,0.047951]
[1737475592080,0.10473442,104370.0,104360.0,0.047951]
[1737475592382,0.10473442,104370.0,104360.0,0.18049671]
[1737475592776,0.10473442,104370.0,104360.0,1.68049671]
[1737475592978,0.64823628,104390.0,104380.0,0.047942]
[1737475592979,0.17009728,104390.0,104380.0,0.047942]
[1737475593184,0.17009728,104390.0,104380.0,0.18048771]
[1737475593579,0.17009728,104390.0,104380.0,0.047942]
[1737475593580,0.53089728,104390.0,104380.0,0.047942]
[1737475593778,0.17009728,104390.0,104380.0,0.18048771]
[1737475594179,0.17509728,104390.0,104380.0,0.18048771]
[1737475594482,0.17509728,104390.0,104380.0,0.1901394]
[1737475594875,0.17709728,104390.0,104380.0,0.5509394]
[1737475595590,0.12509728,104390.0,104380.0,0.1901394]
[1737475595885,0.12009728,104390.0,104380.0,0.1971394]
[1737475596580,0.001,104390.0,104380.0,0.2061394]
[1737475596781,0.001,104390.0,104380.0,0.5669394]
[1737475596981,0.1,104400.0,104390.0,0.047937]
[1737475597178,0.1,104400.0,104390.0,0.18048271]
[1737475597377,0.4608,104400.0,104390.0,0.047937]
[1737475597578,0.508734,104400.0,104390.0,0.047937]
[1737475597780,0.4608,104400.0,104390.0,0.047937]
[1737475598083,0.508733,104400.0,104390.0,0.047937]
[1737475598489,0.59334571,104400.0,104380.0,0.07059269]
[1737475598685,0.047937,104390.0,104380.0,0.06659269]
[1737475598883,0.3608,104390.0,104380.0,0.06659269]
[1737475599080,0.508734,104400.0,104390.0,0.047937]
[1737475599475,0.047937,104390.0,104380.0,0.06659269]
[1737475599684,0.408737,104390.0,104380.0,0.06059269]
[1737475599989,0.408737,104390.0,104380.0,0.01265169]
[1737475600485,0.408737,104390.0,104380.0,0.06059369]
[1737475600986,0.4608,104400.0,104390.0,0.047937]
[1737475601181,0.1,104400.0,104390.0,0.047937]
[1737475601387,0.1,104400.0,104390.0,0.410737]
[1737475601593,0.1,104400.0,104390.0,0.049937]
[1737475601778,0.1,104400.0,104390.0,0.410737]
[1737475602376,0.1,104400.0,104390.0,0.049937]
[1737475602581,0.1,104400.0,104390.0,0.410737]
[1737475602881,0.1,104400.0,104390.0,0.053937]
[1737475603287,0.4608,104400.0,104390.0,0.053937]
[1737475603484,1e-06,104410.0,104390.0,0.414737]
[1737475603684,0.408711,104450.0,104440.0,0.047915]
[1737475603882,0.047915,104440.0,104430.0,0.047918]
[1737475604086,0.3608,104440.0,104420.0,0.408723]
[1737475604289,0.408716,104440.0,104430.0,0.047919]
[1737475604593,0.3608,104440.0,104430.0,0.047919]
[1737475605482,0.047915,104440.0,104430.0,0.047919]
[1737475605684,0.049915,104440.0,104430.0,0.047919]
[1737475606088,0.002,104440.0,104430.0,0.047919]
[1737475606289,0.002,104440.0,104430.0,0.25190584]
[1737475606487,0.049915,104440.0,104430.0,0.25190584]
[1737475606688,0.049915,104440.0,104430.0,0.047919]
[1737475607384,0.049915,104440.0,104430.0,0.05767377]
[1737475607586,0.410715,104440.0,104430.0,0.05767377]
[1737475607789,0.049915,104440.0,104430.0,0.05767377]
[1737475607986,0.04933377,104480.0,104430.0,0.05767377]
[1737475607987,0.14159217,104490.0,104430.0,1.0078944]
[1737475608192,0.14159217,104490.0,104470.0,0.047896]
[1737475608193,0.3608,104480.0,104470.0,0.047896]
[1737475608695,0.0789,104480.0,104470.0,0.047896]
[1737475609087,0.0789,104480.0,104470.0,0.408696]
[1737475609390,0.14359217,104490.0,104480.0,0.047896]
[1737475609586,0.14359217,104490.0,104480.0,0.25188284]
[1737475609786,0.14359217,104490.0,104480.0,0.61268284]
[1737475609992,0.63516502,104520.0,104480.0,0.61268284]
[1737475609993,0.03052005,104520.0,104480.0,0.61268284]
[1737475610192,0.22654748,104530.0,104510.0,0.97346884]
[1737475610492,0.14694367,104530.0,104520.0,0.408678]
[1737475610998,0.07510917,104530.0,104520.0,0.408678]
[1737475611295,0.25486592,104540.0,104530.0,0.047873]
[1737475611494,0.25486592,104540.0,104530.0,0.61265984]
[1737475612699,0.43580946,104560.0,104530.0,0.56478684]
[1737475612700,0.12256,104560.0,104530.0,0.56478684]
[1737475612890,0.12256,104560.0,104540.0,0.408667]
[1737475613397,0.48336,104560.0,104540.0,0.408667]
[1737475613595,0.4355,104560.0,104540.0,1.588667]
[1737475613799,0.047869,104540.0,104530.0,0.00014406]
[1737475613990,0.408669,104540.0,104530.0,0.00014406]
[1737475614192,0.409669,104540.0,104530.0,0.00014406]
[1737475614898,0.488969,104540.0,104490.0,0.36223533]
[1737475615101,0.047884,104510.0,104490.0,0.00143533]
[1737475615394,0.408684,104510.0,104490.0,0.05880268]
[1737475615595,0.047887,104500.0,104490.0,0.04932533]
[1737475615802,0.68885984,104530.0,104490.0,0.04932533]
[1737475615997,0.047887,104500.0,104490.0,0.00143533]
[1737475616197,0.047887,104500.0,104490.0,0.04932733]
[1737475616599,0.408687,104500.0,104490.0,0.05532733]
[1737475616896,0.047887,104500.0,104490.0,0.00743533]
[1737475617197,0.047887,104500.0,104490.0,0.01043533]
[1737475617503,0.047887,104500.0,104480.0,0.05780027]
[1737475617504,0.047892,104490.0,104480.0,0.05780027]
[1737475618495,0.126588,104500.0,104490.0,0.047892]
[1737475618690,0.0787,104500.0,104490.0,0.412692]
[1737475618896,0.0787,104500.0,104490.0,0.61667884]
[1737475619094,0.0787,104500.0,104490.0,0.25587884]
[1737475619293,0.4395,104500.0,104490.0,0.051892]
[1737475619494,0.487387,104500.0,104490.0,0.051892]
[1737475619701,0.126587,104500.0,104490.0,0.051892]
[1737475620197,0.0787,104500.0,104490.0,0.25587884]
[1737475620402,0.0787,104500.0,104490.0,0.62067884]
[1737475620593,0.07564406,104510.0,104500.0,0.047887]
[1737475620990,0.07564406,104510.0,104500.0,0.408687]
[1737475621191,0.48432606,104510.0,104500.0,0.047887]
[1737475621398,0.047887,104500.0,104490.0,0.059891]
[1737475621602,0.047892,104490.0,104480.0,0.00990527]
[1737475621902,0.047896,104480.0,104470.0,0.0479]
[1737475622091,0.123383,104510.0,104500.0,0.047887]
[1737475622402,0.484182,104510.0,104500.0,0.050887]
[1737475622995,0.484182,104510.0,104490.0,0.00814406]
[1737475623200,0.408687,104500.0,104470.0,0.26153737]
[1737475623393,0.0767,104500.0,104490.0,0.20398684]
[1737475623597,0.0815,104510.0,104500.0,0.047887]
[1737475623903,0.0110642,104540.0,104530.0,0.047873]
[1737475624093,0.0589332,104540.0,104530.0,0.047873]
[1737475624294,0.0110642,104540.0,104510.0,1.74478684]
[1737475624492,0.047875,104530.0,104520.0,0.04802106]
[1737475624700,0.408675,104530.0,104520.0,0.00014406]
[1737475625001,0.047882,104510.0,104500.0,0.04932047]
[1737475625193,0.408682,104510.0,104500.0,0.04932047]
[1737475625603,0.414682,104510.0,104500.0,0.05032047]
[1737475625902,0.414682,104510.0,104500.0,0.00243547]
[1737475626098,0.047892,104490.0,104480.0,0.05727205]
[1737475626296,0.408692,104490.0,104480.0,0.047894]
[1737475626709,0.3608,104490.0,104470.0,0.00014406]
[1737475626998,0.43314406,104500.0,104480.0,0.25188184]
[1737475627205,0.48103206,104500.0,104490.0,0.047892]
[1737475627702,0.047892,104490.0,104480.0,0.25888184]
[1737475627896,0.409692,104490.0,104480.0,0.007]
[1737475628102,0.047896,104480.0,104470.0,0.00914406]
[1737475628801,0.047896,104480.0,104470.0,0.05704506]
[1737475629002,0.408696,104480.0,104470.0,0.05704506]
[1737475629197,0.3608,104490.0,104470.0,0.05704506]
[1737475629517,0.047893,104490.0,104480.0,0.047895]
[1737475630002,0.408693,104490.0,104480.0,0.047895]
[1737475630399,0.047896,104480.0,104470.0,0.06604406]
[1737475630603,0.408696,104480.0,104470.0,0.01814406]
[1737475631195,0.408696,104480.0,104470.0,0.00914406]
[1737475631605,0.408696,104480.0,104460.0,0.00978683]
[1737475631809,0.047905,104460.0,104450.0,1.22934484]
[1737475631995,0.408705,104460.0,104450.0,1.22934484]
[1737475632706,0.408705,104460.0,104450.0,0.05880075]
[1737475633295,0.047905,104460.0,104450.0,0.05880075]
[1737475633506,0.050905,104460.0,104450.0,0.05880075]
[1737475633815,0.411705,104460.0,104450.0,0.00143584]
[1737475634005,0.050905,104460.0,104450.0,0.00143584]
[1737475634205,0.003,104460.0,104450.0,0.61413268]
[1737475634409,0.14784406,104470.0,104460.0,0.047905]
[1737475634600,0.408697,104480.0,104460.0,0.408705]
[1737475634802,0.047897,104480.0,104470.0,0.25188784]
[1737475635001,0.12782931,104490.0,104480.0,0.047896]
[1737475635402,0.047896,104480.0,104470.0,0.25188584]
[1737475635606,0.047896,104480.0,104470.0,0.047899]
[1737475635806,0.047896,104480.0,104460.0,0.36094406]
[1737475636105,0.13297637,104490.0,104480.0,0.047896]
[1737475636611,0.12797637,104490.0,104480.0,0.047896]
[1737475638303,0.13097637,104490.0,104480.0,0.047896]
[1737475638700,0.047896,104480.0,104470.0,0.25188584]
[1737475639013,0.047901,104470.0,104460.0,0.41853255]
[1737475639607,0.047898,104480.0,104470.0,0.0479]
[1737475639802,0.047898,104480.0,104470.0,0.4087]
[1737475640006,0.047898,104480.0,104470.0,0.4097]
[1737475640311,0.047898,104480.0,104470.0,0.0489]
[1737475640510,0.12797337,104490.0,104480.0,0.047896]
[1737475641010,0.12797337,104490.0,104480.0,1.227896]
[1737475641203,0.12797337,104490.0,104480.0,0.047896]
[1737475641508,0.047896,104480.0,104470.0,0.002]
[1737475641703,0.047896,104480.0,104470.0,0.410701]
[1737475641909,0.12797537,104490.0,104470.0,0.6158374]
[1737475642212,0.047896,104480.0,104470.0,0.6627364]
[1737475642614,0.047901,104470.0,104460.0,1.23773355]
[1737475642910,0.047897,104480.0,104470.0,0.047898]
[1737475643103,0.047897,104480.0,104470.0,0.408698]
[1737475643907,0.408697,104480.0,104460.0,0.00982855]
[1737475644105,0.047901,104470.0,104460.0,0.05773255]
[1737475644300,0.047901,104470.0,104460.0,0.00982855]
[1737475644506,0.408701,104470.0,104460.0,0.00014406]
[1737475644705,0.479301,104470.0,104460.0,0.00014406]
[1737475644914,0.479301,104470.0,104460.0,0.00414406]
[1737475645210,0.479301,104470.0,104460.0,0.00514406]
[1737475645916,0.047905,104460.0,104450.0,0.39021234]
[1737475646507,0.408705,104460.0,104450.0,0.27641234]
[1737475646819,0.047915,104440.0,104430.0,0.27641234]
[1737475647312,0.121615,104440.0,104430.0,0.27641234]
[1737475647508,0.482415,104440.0,104430.0,0.27641234]
[1737475647908,0.121615,104440.0,104430.0,0.32433134]
[1737475648115,0.04805506,104450.0,104430.0,0.88911818]
[1737475648312,0.04805506,104450.0,104440.0,0.61270184]
[1737475648615,0.04805406,104450.0,104440.0,0.61270184]
[1737475648915,0.04805406,104450.0,104440.0,0.408715]
[1737475648916,0.00014406,104450.0,104440.0,0.408715]
[1737475649709,0.00114406,104450.0,104440.0,0.408715]
[1737475650418,0.00114406,104450.0,104440.0,0.409715]
[1737475650617,0.08577835,104470.0,104460.0,0.047905]
[1737475650817,0.08577835,104470.0,104460.0,2.15349184]
[1737475651205,0.31171206,104480.0,104470.0,0.047901]
[1737475651409,0.31171206,104480.0,104470.0,0.408701]
[1737475652418,0.35960806,104480.0,104470.0,0.408701]
[1737475652921,0.047901,104470.0,104460.0,0.40884806]
[1737475653120,0.41027237,104490.0,104480.0,0.047896]
[1737475653121,0.04947237,104490.0,104480.0,0.047896]
[1737475653411,0.04947237,104490.0,104470.0,0.409697]
[1737475653611,0.047896,104480.0,104470.0,0.409697]
[1737475654018,0.04947237,104490.0,104470.0,0.3618]
[1737475654213,0.05247237,104490.0,104480.0,0.047896]
[1737475654419,0.05247237,104490.0,104480.0,0.408696]
[1737475654719,0.047896,104480.0,104470.0,0.408698]
[1737475655110,0.04947337,104490.0,104480.0,0.047896]
[1737475655416,0.047893,104490.0,104480.0,0.408696]
[1737475655622,0.1544327,104560.0,104480.0,0.554396]
[1737475655811,0.00143489,104650.0,104610.0,0.3608]
[1737475656015,0.00143489,104650.0,104570.0,0.047854]
[1737475656016,0.00143489,104650.0,104640.0,0.3608]
[1737475656215,0.04925289,104650.0,104640.0,0.3608]
[1737475656419,0.50542173,104650.0,104620.0,0.3608]
[1737475656606,0.047832,104620.0,104590.0,0.3608]
[1737475656812,0.00191186,104610.0,104600.0,0.3608]
[1737475657218,0.00191186,104610.0,104600.0,0.37276484]
[1737475657419,0.00191186,104610.0,104600.0,0.56478684]
[1737475657612,0.00191186,104610.0,104600.0,0.408641]
[1737475657812,0.07678335,104620.0,104600.0,0.408641]
[1737475658022,0.07678335,104620.0,104610.0,0.3608]
[1737475658816,0.07678335,104620.0,104610.0,0.37276396]
[1737475659215,0.07978335,104620.0,104610.0,0.37276401]
[1737475659823,0.07678335,104620.0,104610.0,0.57675085]
[1737475660116,0.07678335,104620.0,104610.0,0.37276401]
[1737475660324,0.12461535,104620.0,104610.0,0.37276401]
[1737475660523,0.48641535,104620.0,104590.0,0.20398684]
[1737475660712,0.48641535,104620.0,104590.0,0.25183084]
[1737475660909,0.3608,104610.0,104560.0,0.00956878]
[1737475661211,0.3608,104550.0,104470.0,0.3608]
[1737475661419,0.3608,104490.0,104470.0,0.047899]
[1737475661721,0.56478684,104500.0,104480.0,0.047894]
[1737475661924,0.3608,104500.0,104480.0,0.047894]
[1737475662126,7.098e-05,104490.0,104480.0,0.3608]
[1737475662314,7.098e-05,104490.0,104480.0,0.408694]
[1737475663015,0.26101433,104500.0,104490.0,0.047892]
[1737475663916,0.00018737,104500.0,104490.0,0.047892]
[1737475664115,0.36098737,104500.0,104490.0,0.047892]
[1737475664326,0.3608,104510.0,104500.0,0.047887]
[1737475665521,0.3608,104510.0,104490.0,0.00514335]
[1737475665522,0.047887,104500.0,104490.0,0.00514335]
[1737475665727,0.61267384,104500.0,104490.0,0.00514335]
[1737475666020,0.61267384,104500.0,104490.0,0.00214335]
[1737475666721,0.61267384,104500.0,104490.0,0.00314335]
[1737475667419,0.047901,104470.0,104460.0,0.01113748]
[1737475667614,0.769501,104470.0,104460.0,0.00143572]
[1737475667815,0.769501,104470.0,104460.0,1.50143572]
[1737475668526,0.769501,104470.0,104460.0,0.00143572]
[1737475668831,0.770501,104470.0,104460.0,0.00643572]
[1737475669014,0.3618,104470.0,104460.0,0.00643572]
[1737475669214,0.3618,104470.0,104460.0,0.06334072]
[1737475669215,0.002,104470.0,104460.0,0.06334072]
[1737475669428,0.3628,104470.0,104460.0,0.06334072]
[1737475670820,0.3628,104470.0,104460.0,0.01543572]
[1737475671022,0.410701,104470.0,104460.0,0.01543572]
[1737475671521,0.61468784,104470.0,104460.0,0.00669194]
[1737475672624,0.410701,104470.0,104460.0,0.01867345]
[1737475672812,0.408701,104470.0,104460.0,0.01198151]
[1737475673020,0.412701,104470.0,104460.0,0.01198151]
[1737475674110,0.3648,104470.0,104460.0,0.05988651]
[1737475674511,0.3648,104470.0,104460.0,1.55988353]
[1737475675123,0.3648,104470.0,104460.0,1.547905]
[1737475675624,0.3658,104470.0,104460.0,1.555905]
[1737475675928,0.409701,104470.0,104460.0,1.555905]
[1737475676327,0.408701,104470.0,104460.0,1.55988448]
[1737475676520,0.408701,104470.0,104460.0,1.56188448]
[1737475676719,0.408701,104470.0,104460.0,1.56188441]
[1737475676924,0.408701,104470.0,104460.0,0.06188441]
[1737475677414,0.408701,104470.0,104460.0,1.56188441]
[1737475677817,0.408701,104470.0,104460.0,1.56188452]
[1737475678623,0.409701,104470.0,104460.0,1.55988452]
[1737475678827,0.409701,104470.0,104460.0,1.51297954]
[1737475679124,0.409701,104470.0,104460.0,0.01297954]
[1737475679633,0.409701,104470.0,104460.0,1.51297954]
[1737475680425,0.409701,104470.0,104460.0,0.06088454]
[1737475680726,0.409701,104470.0,104460.0,1.56088454]
[1737475681120,0.3618,104470.0,104460.0,1.56088454]
[1737475682229,0.3608,104470.0,104460.0,1.56088454]
[1737475682828,0.40884035,104480.0,104460.0,1.71796574]
[1737475683033,0.36094335,104480.0,104470.0,0.25188784]
[1737475683224,0.00014335,104480.0,104470.0,0.26386592]
[1737475683526,0.3608,104510.0,104500.0,0.047887]
[1737475683718,0.3608,104510.0,104500.0,0.25187384]
[1737475683921,0.408681,104520.0,104510.0,0.047882]
[1737475684119,0.16100091,104530.0,104520.0,0.047878]
[1737475684326,0.16100091,104530.0,104520.0,0.263838]
[1737475684327,0.11312591,104530.0,104520.0,0.263838]
[1737475684526,0.11312591,104530.0,104520.0,0.624638]
[1737475684824,0.53055515,104550.0,104540.0,0.047869]
[1737475685027,0.53055515,104550.0,104540.0,0.05984216]
[1737475685628,0.16975515,104550.0,104540.0,0.263829]
[1737475685834,0.19804767,104570.0,104560.0,0.04786]
[1737475686021,0.0768,104590.0,104560.0,0.04786]
[1737475686022,0.3608,104590.0,104560.0,0.2638149]
[1737475686221,0.3608,104670.0,104590.0,0.20398684]
[1737475686528,0.408623,104640.0,104630.0,0.20398684]
[1737475686726,0.047828,104630.0,104620.0,0.36094335]
[1737475687117,0.00014335,104640.0,104620.0,0.40877435]
[1737475687322,0.00014335,104640.0,104630.0,0.61261484]
[1737475687821,0.04796635,104640.0,104630.0,0.20398684]
[1737475688018,0.04796635,104640.0,104630.0,0.56478684]
[1737475688322,0.04996635,104640.0,104630.0,0.56478684]
[1737475688525,0.05796635,104640.0,104630.0,0.56478684]
[1737475689122,0.05796635,104640.0,104630.0,0.20398684]
[1737475689123,0.41876635,104640.0,104630.0,0.20398684]
[1737475689325,0.01014335,104640.0,104630.0,0.56478684]
[1737475689527,0.01014335,104640.0,104630.0,0.61261484]
[1737475690125,0.2264719,104650.0,104630.0,0.61261484]
[1737475690326,0.147797,104700.0,104650.0,0.047818]
[1737475690529,0.147797,104700.0,104690.0,0.20398684]
[1737475691029,0.047801,104690.0,104670.0,0.61259484]
[1737475691343,0.007801,104690.0,104670.0,0.56478684]
[1737475691638,0.007801,104690.0,104670.0,0.56493019]
[1737475691639,0.04794512,104690.0,104670.0,0.56493019]
[1737475691822,0.047805,104680.0,104670.0,0.36094335]
[1737475692028,0.408605,104680.0,104670.0,0.00014335]
[1737475692522,0.08994312,104690.0,104670.0,0.36094335]
[1737475692740,0.047805,104680.0,104670.0,0.00014335]
[1737475693123,0.008,104680.0,104670.0,0.36094335]
[1737475693336,0.008,104680.0,104670.0,0.40875235]
[1737475694234,0.008,104680.0,104670.0,0.36094335]
[1737475694430,0.055805,104680.0,104670.0,0.00014335]
[1737475694632,0.049805,104680.0,104670.0,0.36194335]
[1737475694934,0.002,104680.0,104670.0,0.40975235]
[1737475695128,0.008,104680.0,104670.0,0.40975235]
[1737475695527,0.006,104680.0,104670.0,0.40975235]
[1737475695838,0.003,104680.0,104670.0,0.04795235]
[1737475696027,0.003,104680.0,104670.0,0.76955235]
[1737475696427,0.003,104680.0,104670.0,0.77055235]
[1737475697533,0.003,104680.0,104670.0,0.00114335]
[1737475697534,0.047805,104680.0,104670.0,0.00114335]
[1737475697730,0.047805,104680.0,104670.0,0.36194335]
[1737475697928,0.047805,104680.0,104670.0,0.00214335]
[1737475698924,0.04794612,104690.0,104670.0,0.40875035]
[1737475699230,0.00014312,104690.0,104680.0,0.61259184]
[1737475700533,0.00014312,104690.0,104680.0,1.728605]
[1737475700838,0.0478,104690.0,104670.0,0.40875035]
[1737475701031,0.0478,104690.0,104680.0,0.408605]
[1737475701235,0.1,104700.0,104680.0,0.408605]
[1737475701435,0.1,104700.0,104690.0,0.4086]
[1737475702631,0.1,104700.0,104690.0,0.4096]
[1737475703239,0.128979,104740.0,104720.0,0.047785]
[1737475703542,0.047779,104740.0,104730.0,0.408582]
[1737475703841,0.047779,104740.0,104720.0,0.00014335]
[1737475703842,0.047782,104730.0,104720.0,0.00014335]
[1737475704148,0.047791,104710.0,104700.0,0.3608]
[1737475704436,0.456367,104730.0,104700.0,0.3608]
[1737475704437,0.047783,104730.0,104710.0,0.04779]
[1737475704638,0.047783,104730.0,104720.0,0.769386]
[1737475704835,0.047778,104740.0,104720.0,0.769386]
[1737475705039,0.047778,104740.0,104730.0,0.3608]
[1737475705634,0.3608,104740.0,104720.0,0.36094335]
[1737475705834,0.049782,104730.0,104720.0,0.36094335]
[1737475706038,0.410582,104730.0,104720.0,0.00114335]
[1737475706538,0.410582,104730.0,104720.0,0.00014335]
[1737475707037,0.410582,104730.0,104700.0,0.36223268]
[1737475707038,0.047791,104710.0,104700.0,0.36223268]
[1737475707248,0.047791,104710.0,104700.0,0.41002868]
[1737475707539,0.047787,104720.0,104700.0,0.56621952]
[1737475707748,0.009,104740.0,104710.0,0.408591]
[1737475707934,0.047784,104730.0,104720.0,0.3608]
[1737475708137,0.002,104740.0,104720.0,0.408585]
[1737475708337,0.051782,104730.0,104720.0,0.3608]
[1737475708642,0.047786,104720.0,104710.0,0.36094335]
[1737475708945,0.047786,104720.0,104710.0,0.36194335]
[1737475709345,0.047786,104720.0,104710.0,0.36094335]
[1737475710447,0.004,104730.0,104720.0,0.047786]
[1737475710646,0.004,104730.0,104720.0,0.408586]
[1737475710841,0.00314335,104740.0,104730.0,0.047782]
[1737475711043,0.00014335,104740.0,104730.0,0.408582]
[1737475712246,0.047733,104840.0,104740.0,0.047777]
[1737475712445,0.047732,104840.0,104830.0,0.7216]
[1737475712750,0.047732,104840.0,104820.0,0.20398684]
[1737475712751,0.047736,104830.0,104820.0,0.3608]
[1737475712947,0.00190785,104830.0,104820.0,0.7216]
[1737475713146,0.15286418,104850.0,104840.0,0.408532]
[1737475713440,0.15286418,104850.0,104840.0,0.61251884]
[1737475713642,0.00143147,104890.0,104840.0,0.86478684]
[1737475713844,0.00143147,104890.0,104880.0,0.3608]
[1737475714048,0.24447654,104890.0,104880.0,0.3608]
[1737475714850,0.24747654,104890.0,104880.0,0.3608]
[1737475715045,0.24747654,104890.0,104870.0,0.36094335]
[1737475715246,0.19976754,104890.0,104880.0,0.3608]
[1737475715461,0.24747654,104890.0,104880.0,0.3608]
[1737475715652,0.24447654,104890.0,104880.0,0.3608]
[1737475715852,0.25647654,104890.0,104880.0,0.7226]
[1737475716255,0.20876754,104890.0,104880.0,0.7226]
[1737475716461,0.25647654,104890.0,104880.0,0.7226]
[1737475717155,0.25347654,104890.0,104880.0,0.7226]
[1737475717456,0.047723,104860.0,104850.0,0.3608]
[1737475717657,0.047723,104860.0,104830.0,0.3608]
[1737475717957,0.3608,104850.0,104810.0,0.00745784]
[1737475718155,0.20398684,104870.0,104800.0,0.20398684]
[1737475718156,0.3608,104830.0,104800.0,0.20398684]
[1737475718352,0.3608,104840.0,104820.0,0.20398684]
[1737475718561,0.3608,104860.0,104850.0,0.047727]
[1737475718951,0.3648,104860.0,104820.0,0.61252584]
[1737475719152,0.36088352,104850.0,104830.0,0.047733]
[1737475719456,0.3608,104850.0,104840.0,0.00014335]
[1737475719661,0.3618,104860.0,104840.0,0.00014335]
[1737475719961,0.3618,104860.0,104850.0,0.047727]
[1737475720158,0.3628,104860.0,104850.0,0.047727]
[1737475720563,0.3618,104860.0,104850.0,1.547727]
[1737475721457,0.3618,104860.0,104850.0,0.047727]
[1737475721651,0.3638,104860.0,104850.0,0.047727]
[1737475721854,0.3638,104860.0,104850.0,0.25171384]
[1737475722052,0.3638,104860.0,104850.0,1.547727]
[1737475722264,0.3608,104860.0,104850.0,1.547727]
[1737475722564,0.3608,104860.0,104850.0,1.5]
[1737475722755,0.3608,104860.0,104850.0,1.547727]
[1737475723153,0.3608,104860.0,104850.0,1.5]
[1737475723356,0.36094335,104870.0,104850.0,1.547727]
[1737475723663,0.36094335,104870.0,104860.0,0.25170984]
[1737475723856,0.36094335,104870.0,104850.0,1.5]
[1737475724051,0.408523,104860.0,104850.0,1.5]
[1737475724463,0.33690665,104860.0,104850.0,1.5]
[1737475725064,0.33690665,104860.0,104840.0,0.05536193]
[1737475725264,0.3608,104850.0,104840.0,0.05536193]
[1737475725663,0.3608,104850.0,104840.0,1.55536193]
[1737475726163,0.29518365,104860.0,104850.0,0.047727]
[1737475726668,0.29618365,104860.0,104850.0,0.047727]
[1737475726868,0.29618365,104860.0,104840.0,1.50763093]
[1737475727066,0.34390665,104860.0,104840.0,1.55535993]
[1737475727371,0.34390665,104860.0,104850.0,0.047727]
[1737475727566,0.34290665,104860.0,104850.0,0.047727]
[1737475728262,0.33690665,104860.0,104850.0,0.047727]
[1737475728463,0.33790665,104860.0,104850.0,0.047727]
[1737475728764,0.409523,104860.0,104850.0,0.047727]
[1737475728965,0.46025,104860.0,104840.0,1.55536193]
[1737475729165,0.408527,104850.0,104840.0,1.50014335]
[1737475730569,0.408527,104850.0,104840.0,0.00014335]
[1737475731072,0.408527,104850.0,104840.0,1.50014335]
[1737475732872,0.411527,104850.0,104840.0,1.50014335]
[1737475733171,0.413527,104850.0,104840.0,1.50014335]
[1737475733668,0.005,104850.0,104840.0,1.54787535]
[1737475733870,0.004,104850.0,104840.0,1.54787535]
[1737475734275,0.004,104850.0,104840.0,1.90867535]
[1737475734669,0.412527,104850.0,104840.0,1.54787535]
[1737475734971,0.409527,104850.0,104840.0,1.55087535]
[1737475736073,0.409527,104850.0,104840.0,1.54787535]
[1737475736270,0.409527,104850.0,104840.0,1.55087535]
[1737475736467,0.408527,104850.0,104840.0,1.55087535]
[1737475737271,0.408527,104850.0,104840.0,1.55287535]
[1737475737471,0.3608,104850.0,104840.0,1.55287535]
[1737475738074,0.3608,104850.0,104840.0,1.54787535]
[1737475738374,0.408524,104860.0,104850.0,0.047727]
[1737475738977,0.408524,104860.0,104850.0,1.547727]
[1737475739477,0.00014335,104870.0,104860.0,0.047723]
[1737475739869,0.00014335,104870.0,104860.0,0.04683922]
[1737475740673,0.00114335,104870.0,104860.0,0.04683922]
[1737475741270,0.12671,104890.0,104860.0,0.40763922]
[1737475741568,0.047683,104950.0,104930.0,0.047689]
[1737475741569,0.14167459,104950.0,104930.0,0.047689]
[1737475741769,0.14167459,104950.0,104940.0,0.92558684]
[1737475741969,0.18935659,104950.0,104940.0,0.56478684]
[1737475742171,0.14167459,104950.0,104940.0,0.56478684]
[1737475742370,0.14167459,104950.0,104940.0,0.61247284]
[1737475743274,0.10499344,104950.0,104940.0,0.91247284]
[1737475743470,0.16924556,104960.0,104950.0,0.047682]
[1737475743666,0.16924556,104960.0,104950.0,0.3608]
[1737475743885,0.21692256,104960.0,104950.0,0.3608]
[1737475744065,0.16924556,104960.0,104950.0,0.3608]
[1737475744572,0.21692256,104960.0,104950.0,0.3608]
[1737475744876,0.047688,104940.0,104920.0,0.61248184]
[1737475745077,0.22892256,104960.0,104950.0,0.001]
[1737475745283,0.05982035,104960.0,104950.0,0.001]
[1737475745670,0.05982035,104960.0,104950.0,0.20498684]
[1737475745874,0.42062035,104960.0,104950.0,0.20498684]
[1737475746278,0.41762035,104960.0,104950.0,0.20498684]
[1737475746480,0.05682035,104960.0,104950.0,0.001]
[1737475746673,0.41762035,104960.0,104950.0,0.001]
[1737475746969,0.00914335,104960.0,104950.0,0.20398684]
[1737475747173,0.01214335,104960.0,104950.0,0.61246884]
[1737475748190,0.42062035,104960.0,104950.0,0.20398684]
[1737475748481,0.37294335,104960.0,104940.0,0.36094335]
[1737475748683,0.37294335,104960.0,104940.0,0.00014335]
[1737475748684,0.408482,104950.0,104940.0,0.00014335]
[1737475748874,0.37294335,104960.0,104940.0,0.20398684]
[1737475749385,0.1,105000.0,104950.0,0.3608]
[1737475749573,0.14766,105000.0,104990.0,0.20398684]
[1737475749979,0.4608,105000.0,104990.0,0.20398684]
[1737475750186,0.1,105000.0,104990.0,0.20398684]
[1737475750381,0.1,105000.0,104990.0,0.61245084]
[1737475750582,0.1,105000.0,104990.0,2.11245084]
[1737475750790,0.103,105000.0,104990.0,2.11245084]
[1737475751283,0.103,105000.0,104990.0,1.75165084]
[1737475751589,0.112,105000.0,104990.0,1.75265084]